bitfinex/quotes_SOLUSD_20250414
["timestamp","ask_amount","ask_price","bid_price","bid_amount"]
[1744633576044,0.0001,133.22,133.21,19.07256161]
[1744633576243,0.0001,133.22,133.21,18.6460769]
[1744633576439,0.0001,133.22,133.21,26.57946161]
[1744633577362,0.0001,133.22,133.21,26.01081533]
[1744633578636,0.0001,133.22,133.21,26.43730004]
[1744633578841,0.0001,133.23,133.22,0.42648471]
[1744633579135,0.0001,133.23,133.22,18.93040004]
[1744633579963,0.0001,133.23,133.22,18.50391533]
[1744633580670,0.0001,133.23,133.22,26.01021533]
[1744633583942,0.0001,133.23,133.22,7.5063]
[1744633584140,18.64964886,133.22,133.16,18.7735]
[1744633584371,18.50391533,133.2,133.17,7.5091]
[1744633584541,82.9001,133.23,133.18,18.50391533]
[1744633584744,82.9001,133.23,133.19,18.50391533]
[1744633584946,82.9001,133.23,133.21,18.50391533]
[1744633585156,0.0001,133.23,133.22,18.50391533]
[1744633585380,82.81529046,133.28,133.22,18.50391533]
[1744633585666,101.31920579,133.28,133.24,18.50391533]
[1744633586250,82.81529046,133.28,133.24,18.50391533]
[1744633586451,101.31920579,133.28,133.24,18.50391533]
[1744633587266,101.31920579,133.28,133.24,26.00891533]
[1744633587455,82.81529046,133.28,133.24,26.00891533]
[1744633588461,82.81529046,133.28,133.25,18.50391533]
[1744633588666,82.81529046,133.28,133.24,26.00891533]
[1744633589474,82.81529046,133.28,133.25,18.50391533]
[1744633589768,82.81529046,133.28,133.24,26.00891533]
[1744633589949,82.81529046,133.28,133.24,7.505]
[1744633590151,82.81529046,133.28,133.24,26.00891533]
[1744633590767,82.81529046,133.28,133.2,7.5075]
[1744633590768,18.64964886,133.24,133.2,7.5075]
[1744633590973,18.50391533,133.23,133.2,7.5075]
[1744633591173,37.15356419,133.24,133.2,7.5075]
[1744633595967,18.50391533,133.23,133.18,18.50391533]
[1744633596756,18.50391533,133.22,133.18,18.50391533]
[1744633597158,11.56769076,133.22,133.18,11.56769076]
[1744633598172,11.56769076,133.22,133.17,19.07679076]
[1744633598970,30.21733962,133.21,133.16,19.07709076]
[1744633599282,11.56769076,133.18,133.15,0.063]
[1744633599673,11.56769076,133.17,133.15,0.063]
[1744633599875,11.56769076,133.16,133.15,0.063]
[1744633600078,18.64964886,133.16,133.15,0.063]
[1744633600279,11.56769076,133.17,133.15,0.063]
[1744633600463,13.15769076,133.19,133.15,0.063]
[1744633600773,82.81529046,133.21,133.16,11.56769076]
[1744633600959,18.64964886,133.23,133.19,11.56769076]
[1744633601160,82.81529046,133.25,133.23,7.5058]
[1744633601483,82.81529046,133.25,133.21,11.56769076]
[1744633602563,17.75179076,133.28,133.23,11.56769076]
[1744633602763,82.84529046,133.29,133.25,11.56769076]
[1744633603169,82.84529046,133.29,133.26,7.5041]
[1744633603963,101.33241013,133.29,133.26,7.5041]
[1744633604356,18.64964886,133.28,133.24,18.48711967]
[1744633604558,18.48711967,133.26,133.19,0.28432314]
[1744633604789,37.13676853,133.26,133.22,18.48711967]
[1744633604981,82.81529046,133.27,133.25,18.48711967]
[1744633605295,18.67964886,133.29,133.25,25.99131967]
[1744633606197,18.48711967,133.28,133.25,7.5042]
[1744633606572,37.16676853,133.29,133.25,7.5042]
[1744633607173,18.67964886,133.29,133.25,25.99131967]
[1744633607371,18.67964886,133.29,133.27,18.48711967]
[1744633607372,0.03,133.29,133.27,18.48711967]
[1744633607672,18.67964886,133.29,133.25,18.48711967]
[1744633608670,18.67964886,133.29,133.26,18.48711967]
[1744633609170,18.67964886,133.29,133.25,18.48711967]
[1744633609590,18.67964886,133.29,133.26,7.5041]
[1744633611490,37.16676853,133.29,133.26,7.5041]
[1744633611695,18.48711967,133.27,133.23,18.48711967]
[1744633611879,18.48711967,133.26,133.21,18.48711967]
[1744633613495,18.48711967,133.26,133.22,7.5063]
[1744633614196,18.48711967,133.26,133.22,25.99341967]
[1744633615096,18.48711967,133.26,133.22,7.5063]
[1744633615278,18.48711967,133.26,133.22,25.99341967]
[1744633616995,18.64964886,133.26,133.23,0.14216157]
[1744633617896,18.64964886,133.26,133.23,7.64786157]
[1744633618095,44.64086853,133.26,133.21,18.48711967]
[1744633618279,44.64086853,133.26,133.22,0.14216157]
[1744633618474,18.64964886,133.24,133.22,0.14216157]
[1744633618675,18.48711967,133.24,133.22,0.14216157]
[1744633618876,18.64964886,133.24,133.21,7.64896157]
[1744633619084,102.88371013,133.27,133.23,0.14216157]
[1744633619291,18.64964886,133.26,133.24,0.14216157]
[1744633620117,37.13676853,133.26,133.24,0.14216157]
[1744633620486,18.64964886,133.26,133.24,0.14216157]
[1744633620691,37.13676853,133.26,133.24,0.14216157]
[1744633620899,37.13676853,133.26,133.22,7.64826157]
[1744633621092,44.64086853,133.26,133.22,0.14216157]
[1744633621293,37.13676853,133.23,133.2,0.14216157]
[1744633621481,37.13676853,133.22,133.2,0.14216157]
[1744633621801,101.30241013,133.21,133.2,0.14216157]
[1744633622099,101.46493932,133.2,133.19,0.063]
[1744633622288,44.64426853,133.2,133.19,0.063]
[1744633623487,18.64964886,133.2,133.19,0.063]
[1744633623799,44.64426853,133.2,133.19,0.063]
[1744633625496,37.13676853,133.2,133.19,0.063]
[1744633626803,45.07075324,133.2,133.19,0.063]
[1744633627098,70.00277291,133.2,133.19,0.063]
[1744633627796,51.51565324,133.2,133.19,0.063]
[1744633627997,43.58166853,133.2,133.19,0.063]
[1744633628383,25.09454886,133.2,133.19,0.063]
[1744633628589,43.58166853,133.2,133.19,0.063]
[1744633628996,25.09454886,133.2,133.19,0.063]
[1744633629193,43.58166853,133.2,133.19,0.063]
[1744633629596,18.48711967,133.22,133.19,0.20516157]
[1744633630279,37.13676853,133.23,133.19,0.20516157]
[1744633630478,18.48711967,133.22,133.19,0.20516157]
[1744633632602,18.64964886,133.2,133.19,7.71316157]
[1744633635384,30.21829899,133.2,133.19,0.20516157]
[1744633636012,30.21829899,133.21,133.2,0.14216157]
[1744633636610,18.64964886,133.21,133.2,0.14216157]
[1744633639511,18.64964886,133.21,133.2,7.64966157]
[1744633640218,18.64964886,133.21,133.2,0.14216157]
[1744633640611,18.64964886,133.21,133.2,7.64966157]
[1744633641214,30.21829899,133.21,133.2,0.14216157]
[1744633642913,30.21829899,133.21,133.2,7.64966157]
[1744633643514,18.64964886,133.21,133.2,7.64966157]
[1744633644815,82.9,133.22,133.21,0.14216157]
[1744633646029,101.54964886,133.22,133.21,0.14216157]
[1744633647107,101.54964886,133.22,133.21,7.64906157]
[1744633647493,82.9,133.22,133.21,7.64906157]
[1744633648726,82.9,133.26,133.22,0.14216157]
[1744633649024,18.64964886,133.25,133.22,0.14216157]
[1744633650105,18.64964886,133.25,133.24,0.14216157]
[1744633651002,30.21829899,133.25,133.23,0.14216157]
[1744633651523,11.56865013,133.24,133.19,0.063]
[1744633651733,82.9,133.24,133.21,0.14216157]
[1744633651909,82.9,133.24,133.21,11.7108117]
[1744633652109,82.9,133.24,133.23,7.64796157]
[1744633652624,82.9,133.24,133.22,7.64816157]
[1744633652836,82.9,133.24,133.22,0.14216157]
[1744633653198,101.54964886,133.24,133.23,0.14216157]
[1744633653614,82.9,133.24,133.23,0.14216157]
[1744633654234,82.9,133.24,133.23,7.64796157]
[1744633655030,82.9,133.24,133.23,19.2166117]
[1744633655617,82.9,133.24,133.23,7.64796157]
[1744633657307,18.64964886,133.26,133.23,7.64796157]
[1744633658720,82.9,133.27,133.25,0.14216157]
[1744633659833,82.9,133.27,133.24,7.5052]
[1744633660028,18.64964886,133.26,133.25,0.14216157]
[1744633660723,18.64964886,133.26,133.23,7.5055]
[1744633660926,18.64964886,133.26,133.24,0.14216157]
[1744633662233,18.64964886,133.26,133.24,7.64716157]
[1744633663131,94.46865013,133.27,133.24,7.64716157]
[1744633663434,82.9,133.27,133.24,7.64716157]
[1744633664532,30.21829899,133.26,133.2,20.2752]
[1744633664714,11.56865013,133.25,133.21,0.14216157]
[1744633665515,11.56865013,133.25,133.21,7.64906157]
[1744633665828,11.56865013,133.25,133.21,19.2177117]
[1744633666231,11.56865013,133.25,133.21,7.64906157]
[1744633666829,11.56865013,133.25,133.21,19.2177117]
[1744633669025,30.21829899,133.26,133.21,19.2177117]
[1744633669520,37.72259899,133.26,133.21,19.2177117]
[1744633669721,30.21829899,133.26,133.21,19.2177117]
[1744633670135,11.56865013,133.25,133.21,7.64906157]
[1744633673137,26.04934395,133.26,133.21,15.04875666]
[1744633674126,33.55354395,133.26,133.21,15.04875666]
[1744633674648,18.64964886,133.24,133.21,7.64906157]
[1744633675150,18.64964886,133.24,133.21,15.04875666]
[1744633677350,18.64964886,133.26,133.23,0.14216157]
[1744633677641,26.04934395,133.26,133.23,0.14216157]
[1744633678138,26.04934395,133.26,133.21,14.90659509]
[1744633678139,33.55354395,133.26,133.22,7.64846157]
[1744633678847,18.64964886,133.26,133.22,15.04815666]
[1744633679547,82.9,133.27,133.22,33.81405666]
[1744633679745,82.9,133.27,133.26,7.54185666]
[1744633680042,0.03,133.29,133.28,7.503]
[1744633680252,0.03,133.29,133.28,7.64516157]
[1744633680427,0.03,133.29,133.28,0.14216157]
[1744633680428,101.57964886,133.29,133.28,0.14216157]
[1744633681230,82.93,133.29,133.28,0.14216157]
[1744633681826,0.03,133.29,133.28,0.14216157]
[1744633682349,0.03,133.29,133.28,7.64516157]
[1744633682655,6.89,133.29,133.28,7.64516157]
[1744633682948,6.89,133.29,133.28,15.04485666]
[1744633683151,6.89,133.29,133.28,7.64516157]
[1744633683574,6.89,133.29,133.28,15.04485666]
[1744633683728,0.03,133.29,133.28,15.04485666]
[1744633685930,2.6059172,133.3,133.29,0.14216157]
[1744633686133,2.6059172,133.3,133.29,7.54185666]
[1744633686335,2.6059172,133.3,133.29,15.04425666]
[1744633689770,2.6059172,133.3,133.29,7.64456157]
[1744633689937,85.5059172,133.3,133.24,7.5052]
[1744633690133,7.39969509,133.27,133.25,0.14216157]
[1744633690459,7.39969509,133.27,133.25,7.64676157]
[1744633690460,6.86,133.26,133.25,7.64676157]
[1744633692654,6.86,133.26,133.25,15.04645666]
[1744633692974,6.86,133.26,133.25,7.64676157]
[1744633693146,14.25969509,133.26,133.24,0.14216157]
[1744633693546,6.86,133.26,133.24,0.14216157]
[1744633695752,39.51264395,133.26,133.25,0.14216157]
[1744633695958,77.04200902,133.26,133.19,0.063]
[1744633696270,7.39969509,133.22,133.19,0.063]
[1744633696437,6.78,133.21,133.2,0.14216157]
[1744633696855,14.17969509,133.21,133.2,0.14216157]
[1744633697058,6.78,133.21,133.19,0.20516157]
[1744633697533,6.78,133.21,133.19,7.60485666]
[1744633697748,6.78,133.21,133.2,7.54185666]
[1744633698437,6.78,133.21,133.2,15.04935666]
[1744633698642,6.78,133.22,133.21,0.14216157]
[1744633698843,6.78,133.22,133.21,7.54185666]
[1744633699078,6.78,133.22,133.21,7.68401823]
[1744633699241,6.78,133.24,133.21,11.84199141]
[1744633699443,6.78,133.24,133.23,11.69982984]
[1744633700547,6.78,133.24,133.23,7.64796157]
[1744633701938,6.78,133.24,133.23,0.14216157]
[1744633702137,6.78,133.24,133.23,7.64796157]
[1744633702952,18.33766827,133.24,133.23,0.14216157]
[1744633703139,38.57601713,133.24,133.23,0.14216157]
[1744633703340,52.98840184,133.24,133.19,0.20516157]
[1744633703544,11.55766827,133.2,133.19,0.20516157]
[1744633704053,11.55766827,133.2,133.19,0.063]
[1744633705348,11.55766827,133.21,133.19,0.063]
[1744633708077,94.45766827,133.23,133.19,0.063]
[1744633708640,14.8494,133.24,133.21,0.14216157]
[1744633709677,26.40706827,133.24,133.21,0.14216157]
[1744633709974,26.40706827,133.24,133.21,7.64886157]
[1744633710974,14.8494,133.24,133.21,7.64886157]
[1744633711178,6.78,133.24,133.21,7.64886157]
[1744633713788,11.55766827,133.25,133.21,19.20652984]
[1744633714080,6.78,133.23,133.21,19.20652984]
[1744633715474,6.78,133.23,133.21,0.14216157]
[1744633716266,6.78,133.23,133.22,0.14216157]
[1744633717247,6.78,133.23,133.22,7.64846157]
[1744633719375,94.45766827,133.26,133.23,0.14216157]
[1744633719575,6.78,133.25,133.23,0.14216157]
[1744633722176,6.78,133.25,133.24,0.14216157]
[1744633723157,6.78,133.25,133.24,11.69982984]
[1744633723365,6.78,133.25,133.24,0.14216157]
[1744633723974,6.78,133.25,133.24,7.64736157]
[1744633724487,6.78,133.25,133.24,19.20502984]
[1744633724862,6.78,133.25,133.24,0.14216157]
[1744633725060,0.28432314,133.23,133.19,0.063]
[1744633725263,30.20731713,133.2,133.19,0.063]
[1744633725472,36.92731713,133.2,133.19,0.063]
[1744633726269,44.43481713,133.2,133.19,0.063]
[1744633727086,36.92731713,133.2,133.19,0.063]
[1744633727254,18.27766827,133.2,133.19,0.063]
[1744633727459,6.72,133.2,133.19,0.063]
[1744633737385,18.27766827,133.2,133.19,0.063]
[1744633737589,6.72,133.2,133.19,0.063]
[1744633741693,18.27766827,133.2,133.19,0.063]
[1744633742177,36.92731713,133.2,133.19,0.063]
[1744633742576,38.48361713,133.2,133.19,0.063]
[1744633743000,38.48361713,133.2,133.19,0.20516157]
[1744633743890,19.83396827,133.2,133.19,7.71316157]
[1744633744077,6.72,133.2,133.19,7.71316157]
[1744633746071,6.72,133.2,133.19,19.27082984]
[1744633746272,6.72,133.2,133.19,7.71316157]
[1744633747073,6.72,133.2,133.19,19.27082984]
[1744633748792,82.9,133.26,133.19,19.41299141]
[1744633749001,6.72,133.22,133.2,0.14216157]
[1744633749306,6.72,133.22,133.21,0.14216157]
[1744633750200,6.72,133.22,133.21,7.64906157]
[1744633751793,6.72,133.22,133.21,0.14216157]
[1744633751995,6.72,133.22,133.21,7.64906157]
[1744633752794,119.82731713,133.22,133.21,0.14216157]
[1744633753596,18.64964886,133.21,133.19,0.063]
[1744633753811,113.53380184,133.2,133.19,0.063]
[1744633753986,128.78143991,133.2,133.19,0.063]
[1744633754179,125.09147011,133.2,133.19,0.063]
[1744633754375,132.59897011,133.2,133.19,0.063]
[1744633754698,49.69897011,133.2,133.19,0.063]
[1744633754902,103.03614886,133.18,133.17,0.063]
[1744633755081,31.75681713,133.18,133.17,0.063]
[1744633755598,13.10716827,133.18,133.17,0.063]
[1744633755982,6.7,133.18,133.17,0.063]
[1744633756390,6.7,133.18,133.17,0.20516157]
[1744633756590,6.7,133.18,133.17,11.76282984]
[1744633756977,6.7,133.18,133.17,0.20516157]
[1744633758296,36.90731713,133.18,133.17,0.20516157]
[1744633759102,25.34964886,133.18,133.17,7.71426157]
[1744633759398,6.7,133.18,133.17,7.71426157]
[1744633763207,6.7,133.18,133.17,7.71426157]
[1744633764790,6.7,133.18,133.17,19.27192984]
[1744633765107,82.9,133.2,133.18,0.14216157]
[1744633765285,6.7,133.19,133.18,0.14216157]
[1744633767411,6.7,133.19,133.18,7.65076157]
[1744633768495,6.7,133.19,133.18,0.14216157]
[1744633768696,18.25766827,133.19,133.17,7.71416157]
[1744633768903,113.10731713,133.18,133.17,0.20516157]
[1744633769095,30.20731713,133.18,133.17,0.063]
[1744633769292,61.05050184,133.18,133.17,0.063]
[1744633769488,68.55910184,133.18,133.15,0.063]
[1744633769691,30.63380184,133.16,133.15,0.063]
[1744633769901,54.03380184,133.16,133.15,0.063]
[1744633770429,88.11147011,133.16,133.15,0.063]
[1744633771004,41.59613357,133.15,133.14,0.063]
[1744633771205,64.71147011,133.15,133.14,0.063]
[1744633771397,64.71147011,133.15,133.13,0.063]
[1744633771398,72.22177011,133.15,133.13,0.063]
[1744633771598,56.20731713,133.12,133.11,0.063]
[1744633774003,30.20731713,133.12,133.11,0.063]
[1744633775508,36.90731713,133.12,133.11,0.063]
[1744633776591,30.20731713,133.12,133.11,0.063]
[1744633776794,36.90731713,133.12,133.11,0.063]
[1744633777211,44.84580184,133.12,133.11,0.063]
[1744633778715,19.84206827,133.14,133.11,0.063]
[1744633778894,6.7,133.13,133.11,0.063]
[1744633779094,30.20731713,133.12,133.11,0.063]
[1744633779507,18.25766827,133.13,133.11,0.063]
[1744633781431,18.25766827,133.13,133.11,0.20516157]
[1744633781916,6.7,133.13,133.11,0.20516157]
[1744633782119,18.25766827,133.13,133.11,0.20516157]
[1744633783824,18.25766827,133.13,133.12,7.65416157]
[1744633785022,6.7,133.13,133.12,7.65416157]
[1744633786201,6.7,133.13,133.12,19.21182984]
[1744633786827,82.9,133.14,133.13,0.14216157]
[1744633787028,6.68,133.14,133.13,0.14216157]
[1744633787724,6.68,133.14,133.13,7.65356157]
[1744633790625,6.68,133.14,133.12,7.5118]
[1744633790822,6.68,133.14,133.13,0.14216157]
[1744633791546,132.24083357,133.12,133.11,0.063]
[1744633791754,30.20731713,133.11,133.1,0.063]
[1744633791913,37.71981713,133.11,133.1,0.063]
[1744633792111,38.14630184,133.11,133.1,0.063]
[1744633796029,61.56630184,133.11,133.1,0.063]
[1744633796346,61.13981713,133.11,133.1,0.063]
[1744633796831,53.62731713,133.11,133.1,0.063]
[1744633797916,42.06964886,133.11,133.1,0.063]
[1744633798137,53.62731713,133.11,133.1,0.063]
[1744633800720,30.1,133.11,133.1,0.20516157]
[1744633800915,6.68,133.11,133.1,11.76282984]
[1744633801222,32.76246157,133.19,133.11,0.14216157]
[1744633801223,6.68,133.14,133.11,0.14216157]
[1744633801534,6.68,133.14,133.13,11.69982984]
[1744633801733,6.68,133.14,133.13,0.14216157]
[1744633802045,18.23766827,133.14,133.13,0.14216157]
[1744633803237,18.23766827,133.14,133.1,7.5761]
[1744633803238,101.69181043,133.13,133.1,0.063]
[1744633803534,30.20731713,133.11,133.1,0.063]
[1744633805449,30.20731713,133.12,133.1,0.063]
[1744633805736,11.55766827,133.11,133.1,0.063]
[1744633806240,18.64964886,133.12,133.1,0.063]
[1744633806241,11.55766827,133.12,133.1,0.063]
[1744633806417,82.9,133.13,133.1,0.063]
[1744633806622,82.9,133.13,133.11,0.14216157]
[1744633807420,82.9,133.13,133.12,7.65416157]
[1744633808121,6.68,133.14,133.13,0.14216157]
[1744633808328,6.68,133.14,133.13,11.69982984]
[1744633808535,6.68,133.16,133.13,11.69982984]
[1744633808721,6.68,133.16,133.15,11.69982984]
[1744633808936,6.68,133.16,133.15,0.14216157]
[1744633809319,18.23766827,133.16,133.15,0.14216157]
[1744633809513,6.68,133.16,133.15,0.14216157]
[1744633809720,6.68,133.16,133.15,7.65246157]
[1744633809922,6.68,133.16,133.15,19.21012984]
[1744633810319,6.71,133.17,133.16,0.14216157]
[1744633810542,6.71,133.17,133.16,11.69982984]
[1744633811440,6.71,133.17,133.16,0.14216157]
[1744633811820,18.26766827,133.17,133.14,7.65276157]
[1744633812026,18.26766827,133.17,133.14,7.65286157]
[1744633812449,6.71,133.17,133.14,7.65286157]
[1744633813426,0.03,133.17,133.16,19.20952984]
[1744633813635,0.03,133.17,133.16,7.65186157]
[1744633814033,11.58766827,133.17,133.16,0.14216157]
[1744633814229,30.23731713,133.17,133.16,0.14216157]
[1744633814433,30.23731713,133.17,133.12,0.14216157]
[1744633814434,30.52164027,133.17,133.12,0.14216157]
[1744633814631,94.45766827,133.16,133.12,11.69982984]
[1744633814933,82.9,133.16,133.14,0.14216157]
[1744633815131,82.9,133.16,133.14,11.69982984]
[1744633815532,0.03,133.17,133.16,0.14216157]
[1744633817027,6.73,133.17,133.16,0.14216157]
[1744633817866,6.73,133.17,133.16,7.65186157]
[1744633820356,6.73,133.17,133.16,19.20952984]
[1744633820535,0.03,133.17,133.16,19.20952984]
[1744633821539,0.03,133.17,133.16,7.65186157]
[1744633821960,0.03,133.17,133.16,19.20952984]
[1744633825539,0.03,133.19,133.16,38.41041455]
[1744633825744,0.03,133.19,133.18,11.69982984]
[1744633825941,0.03,133.19,133.18,0.14216157]
[1744633827153,0.03,133.19,133.18,19.20842984]
[1744633827357,0.03,133.19,133.18,7.65076157]
[1744633827954,0.03,133.19,133.18,0.14216157]
[1744633828165,0.03,133.19,133.18,19.20842984]
[1744633828457,11.58766827,133.19,133.18,0.14216157]
[1744633828663,0.03,133.19,133.18,0.14216157]
[1744633828863,11.58766827,133.19,133.18,0.14216157]
[1744633829246,30.23731713,133.19,133.18,0.14216157]
[1744633829442,18.67964886,133.19,133.18,0.14216157]
[1744633829656,113.13731713,133.19,133.18,0.14216157]
[1744633830040,120.64531713,133.19,133.18,0.14216157]
[1744633830257,120.7874787,133.19,133.12,7.5117]
[1744633830440,11.55766827,133.17,133.13,0.14216157]
[1744633831461,11.55766827,133.17,133.15,0.14216157]
[1744633832061,11.55766827,133.16,133.12,0.14216157]
[1744633832372,6.68,133.15,133.12,7.65376157]
[1744633832658,6.68,133.15,133.12,19.21142984]
[1744633837766,6.68,133.15,133.12,37.99142984]
[1744633838643,6.68,133.15,133.14,37.69982984]
[1744633839239,6.68,133.18,133.15,0.14216157]
[1744633839457,6.68,133.18,133.17,11.69982984]
[1744633841373,0.03,133.19,133.18,0.14216157]
[1744633841591,0.03,133.22,133.21,26.14216157]
[1744633841751,0.03,133.22,133.21,11.69982984]
[1744633843456,0.03,133.22,133.21,33.64906157]
[1744633843967,0.03,133.22,133.19,0.14216157]
[1744633844187,18.64964886,133.21,133.19,0.14216157]
[1744633844376,18.37766827,133.2,133.19,0.14216157]
[1744633844573,6.82,133.2,133.16,7.5097]
[1744633844757,11.55766827,133.19,133.17,0.14216157]
[1744633845659,11.55766827,133.19,133.18,0.14216157]
[1744633846173,101.27766827,133.2,133.18,0.14216157]
[1744633846386,89.72,133.2,133.18,0.14216157]
[1744633847590,89.72,133.2,133.19,7.65016157]
[1744633847766,6.82,133.2,133.19,7.65016157]
[1744633848091,6.82,133.2,133.19,19.20782984]
[1744633849090,6.82,133.2,133.19,7.65016157]
[1744633849801,18.37766827,133.2,133.19,0.14216157]
[1744633850865,6.82,133.2,133.19,7.65016157]
[1744633852078,6.82,133.2,133.19,19.20782984]
[1744633853079,25.46964886,133.2,133.19,0.14216157]
[1744633853286,38.68811713,133.2,133.19,0.14216157]
[1744633854169,20.03846827,133.2,133.19,0.14216157]
[1744633854369,18.37766827,133.2,133.19,0.14216157]
[1744633854679,37.02731713,133.2,133.19,0.14216157]
[1744633855888,44.53481713,133.2,133.19,0.14216157]
[1744633856084,25.46964886,133.2,133.19,0.14216157]
[1744633856288,18.37766827,133.2,133.19,0.14216157]
[1744633857869,44.53481713,133.2,133.19,0.14216157]
[1744633858492,18.79181043,133.19,133.11,0.20516157]
[1744633858686,11.55766827,133.15,133.11,0.20516157]
[1744633858890,6.82,133.14,133.11,0.20516157]
[1744633859092,6.82,133.14,133.13,11.69982984]
[1744633859282,6.82,133.16,133.13,11.69982984]
[1744633859502,6.82,133.19,133.16,0.14216157]
[1744633859801,6.82,133.19,133.18,11.69982984]
[1744633860391,0.03,133.22,133.19,0.28432314]
[1744633860569,0.0001,133.22,133.21,12.12631455]
[1744633860772,0.0001,133.22,133.21,11.69982984]
[1744633861280,0.0001,133.22,133.19,11.69982984]
[1744633861688,0.0001,133.22,133.21,0.14216157]
[1744633862289,0.0001,133.22,133.19,0.14216157]
[1744633862482,0.0001,133.22,133.21,0.14216157]
[1744633862789,0.0001,133.22,133.21,11.69982984]
[1744633864875,0.0001,133.22,133.21,19.20672984]
[1744633865981,0.0001,133.22,133.21,19.63321455]
[1744633866183,2.6359172,133.3,133.26,0.28432314]
[1744633866382,2.6359172,133.3,133.26,23.68398282]
[1744633866792,2.6359172,133.3,133.29,11.69982984]
[1744633867283,2.6359172,133.3,133.29,0.14216157]
[1744633867887,2.6359172,133.3,133.29,11.69982984]
[1744633868896,2.6359172,133.3,133.29,19.20222984]
[1744633869288,2.6359172,133.3,133.29,7.64456157]
[1744633869486,2.6359172,133.3,133.29,0.14216157]
[1744633869890,2.6359172,133.3,133.29,7.64456157]
[1744633870480,2.6359172,133.3,133.29,19.20222984]
[1744633872106,2.6359172,133.3,133.29,7.64456157]
[1744633873080,2.6359172,133.3,133.29,0.14216157]
[1744633873285,115.74323433,133.3,133.29,0.14216157]
[1744633873484,123.24503433,133.3,133.29,0.14216157]
[1744633873696,18.79181043,133.29,133.21,0.14216157]
[1744633873896,11.55766827,133.23,133.21,7.64906157]
[1744633874093,7.0,133.22,133.21,7.64906157]
[1744633875812,7.0,133.22,133.21,19.20672984]
[1744633879109,7.0,133.22,133.21,7.64906157]
[1744633879801,0.03,133.28,133.23,0.28432314]
[1744633880004,0.03,133.28,133.27,0.14216157]
[1744633880601,0.03,133.28,133.27,11.69982984]
[1744633881003,0.03,133.28,133.27,0.14216157]
[1744633881202,0.03,133.28,133.27,7.64566157]
[1744633887497,0.03,133.28,133.27,0.14216157]
[1744633889600,11.58766827,133.28,133.27,0.14216157]
[1744633890526,0.03,133.28,133.27,0.14216157]
[1744633891516,11.58766827,133.28,133.27,0.14216157]
[1744633891716,18.64964886,133.26,133.2,7.5075]
[1744633892019,18.64964886,133.24,133.21,0.14216157]
[1744633892227,7.0,133.23,133.21,0.14216157]
[1744633892396,7.0,133.23,133.22,0.14216157]
[1744633894520,7.0,133.23,133.22,7.64846157]
[1744633894832,7.0,133.23,133.21,7.64876157]
[1744633896935,7.0,133.23,133.21,0.14216157]
[1744633897137,11.55766827,133.22,133.19,7.64996157]
[1744633897428,11.55766827,133.21,133.19,0.14216157]
[1744633898215,11.55766827,133.21,133.2,0.14216157]
[1744633898529,18.55766827,133.23,133.2,0.14216157]
[1744633899640,11.55766827,133.21,133.18,7.5083]
[1744633901844,11.55766827,133.21,133.19,0.14216157]
[1744633902721,11.55766827,133.2,133.15,0.063]
[1744633903039,11.55766827,133.2,133.15,11.76282984]
[1744633903225,18.64964886,133.21,133.17,0.14216157]
[1744633903428,11.55766827,133.2,133.17,0.14216157]
[1744633903638,18.64964886,133.21,133.17,0.14216157]
[1744633903829,11.55766827,133.2,133.17,0.14216157]
[1744633905039,11.55766827,133.19,133.15,0.063]
[1744633905216,26.75674886,133.21,133.15,0.063]
[1744633905217,18.53766827,133.18,133.15,0.063]
[1744633905413,18.64964886,133.17,133.15,0.063]
[1744633905616,113.10731713,133.16,133.15,0.063]
[1744633906427,101.54964886,133.16,133.15,0.063]
[1744633906739,113.10731713,133.16,133.15,0.063]
[1744633907320,82.9,133.16,133.15,0.063]
[1744633907738,94.45766827,133.16,133.15,0.063]
[1744633910035,82.9,133.16,133.15,0.063]
[1744633911343,6.98,133.18,133.16,0.14216157]
[1744633911523,6.98,133.18,133.17,0.14216157]
[1744633912053,37.18731713,133.18,133.17,0.14216157]
[1744633912740,120.08731713,133.18,133.17,0.14216157]
[1744633912922,68.9123787,133.18,133.15,0.063]
[1744633913122,37.71701713,133.16,133.15,0.063]
[1744633913839,37.8591787,133.16,133.15,0.063]